fUSD/lending_fUSD_20241128
["ID","MTS","AMOUNT","RATE_DAILY","PERIOD"]
[343632960,1732763463074,-385.6,9.999e-05,2]
[343632961,1732763463083,-3114.81,9.999e-05,2]
[343632962,1732763463093,-500.0,9.999e-05,2]
[343632963,1732763463102,-3114.81,9.999e-05,2]
[343632964,1732763463111,-506.4931247,9.999e-05,2]
[343632965,1732763463120,-512.63996297,9.999e-05,2]
[343632966,1732763463130,-3114.81,9.999e-05,2]
[343632967,1732763463140,-500.0,9.999e-05,2]
[343632968,1732763463149,-3114.81,9.999e-05,2]
[343632969,1732763463158,-500.0,9.999e-05,2]
[343632970,1732763463167,-3114.81,9.999e-05,2]
[343632971,1732763463177,-500.0,9.999e-05,2]
[343632972,1732763463187,-3114.81,9.999e-05,2]
[343632973,1732763463198,-500.0,9.999e-05,2]
[343632974,1732763463208,-3114.89904888,9.999e-05,2]
[343632975,1732763463217,-500.0,9.999e-05,2]
[343632976,1732763463227,-500.0,9.999e-05,2]
[343632977,1732763463237,-500.0,9.999e-05,2]
[343632978,1732763463247,-500.0,9.999e-05,2]
[343632979,1732763463256,-500.0,9.999e-05,2]
[343632980,1732763463266,-500.0,9.999e-05,2]
[343632981,1732763463277,-500.0,9.999e-05,2]
[343632982,1732763463287,-500.0,9.999e-05,2]
[343632983,1732763463297,-500.0,9.999e-05,2]
[343632984,1732763463307,-329.58,9.999e-05,2]
[343632985,1732763463317,-500.8,9.999e-05,2]
[343632986,1732763463326,-500.0,9.999e-05,2]
[343632987,1732763463336,-505.30811821,9.999e-05,2]
[343632988,1732763463345,-585.37,9.999e-05,2]
[343632989,1732763463355,-585.37,9.999e-05,2]
[343632990,1732763463364,-585.37,9.999e-05,2]
[343632991,1732763463374,-585.37,9.999e-05,2]
[343632992,1732763463383,-585.37,9.999e-05,2]
[343632993,1732763463393,-500.0,9.999e-05,2]
[343632994,1732763463403,-585.37,9.999e-05,2]
[343632995,1732763463413,-500.0,9.999e-05,2]
[343632996,1732763463423,-585.37,9.999e-05,2]
[343632997,1732763463432,-166.2,9.999e-05,2]
[343632998,1732763463442,-585.37,9.999e-05,2]
[343632999,1732763463451,-585.37,9.999e-05,2]
[343633000,1732763463461,-585.37,9.999e-05,2]
[343633001,1732763463471,-585.37,9.999e-05,2]
[343633002,1732763463481,-585.37,9.999e-05,2]
[343633003,1732763463490,-585.37,9.999e-05,2]
[343633004,1732763463499,-585.37,9.999e-05,2]
[343633005,1732763463509,-585.37,9.999e-05,2]
[343633006,1732763463518,-585.37,9.999e-05,2]
[343633007,1732763463528,-585.37,9.999e-05,2]
[343633008,1732763463537,-585.37,9.999e-05,2]
[343633009,1732763463547,-585.37,9.999e-05,2]
[343633010,1732763463556,-585.37,9.999e-05,2]
[343633011,1732763463566,-585.37,9.999e-05,2]
[343633012,1732763463578,-585.49,9.999e-05,2]
[343633013,1732763463588,-500.0,9.999e-05,2]
[343633014,1732763463597,-500.0,9.999e-05,2]
[343633015,1732763463607,-500.0,9.999e-05,2]
[343633016,1732763463617,-500.0,9.999e-05,2]
[343633017,1732763463626,-500.0,9.999e-05,2]
[343633018,1732763463636,-500.0,9.999e-05,2]
[343633019,1732763463646,-500.0,9.999e-05,2]
[343633020,1732763463656,-502.02487382,9.999e-05,2]
[343633021,1732763463665,-513.6,9.999e-05,2]
[343633022,1732763463674,-500.0,9.999e-05,2]
[343633023,1732763463684,-500.0,9.999e-05,2]
[343633024,1732763463694,-500.0,9.999e-05,2]
[343633025,1732763463704,-500.0,9.999e-05,2]
[343633026,1732763463714,-443.23798797,9.999e-05,2]
[343633027,1732763463723,-500.0,9.999e-05,2]
[343633028,1732763463733,-500.0,9.999e-05,2]
[343633029,1732763463742,-500.0,9.999e-05,2]
[343633030,1732763463752,-500.0,9.999e-05,2]
[343633031,1732763463762,-500.0,9.999e-05,2]
[343633032,1732763463775,-258.76,9.999e-05,2]
[343633033,1732763463784,-500.0,9.999e-05,2]
[343633034,1732763463793,-566.90564245,9.999e-05,2]
[343633035,1732763463803,-500.0,9.999e-05,2]
[343633036,1732763463812,-500.0,9.999e-05,2]
[343633037,1732763463822,-500.0,9.999e-05,2]
[343633038,1732763463831,-500.0,9.999e-05,2]
[343633039,1732763463841,-500.0,9.999e-05,2]
[343633040,1732763463850,-500.0,9.999e-05,2]
[343633041,1732763463859,-500.0,9.999e-05,2]
[343633042,1732763463868,-500.0,9.999e-05,2]
[343633043,1732763463878,-500.0,9.999e-05,2]
[343633044,1732763463887,-500.0,9.999e-05,2]
[343633045,1732763463896,-500.0,9.999e-05,2]
[343633046,1732763463906,-500.0,9.999e-05,2]
[343633047,1732763463916,-500.0,9.999e-05,2]
[343633048,1732763463926,-500.0,9.999e-05,2]
[343633049,1732763463936,-500.0,9.999e-05,2]
[343633050,1732763463945,-500.0,9.999e-05,2]
[343633051,1732763463956,-393.12,9.999e-05,2]
[343633052,1732763463966,-180.08,9.999e-05,2]
[343633053,1732763463976,-500.0,9.999e-05,2]
[343633054,1732763463986,-500.0,9.999e-05,2]
[343633055,1732763463996,-500.0,9.999e-05,2]
[343633056,1732763464006,-500.0,9.999e-05,2]
[343633057,1732763464016,-237.99,9.999e-05,2]
[343633058,1732763464025,-500.0,9.999e-05,2]
[343633059,1732763464035,-500.0,9.999e-05,2]
[343633060,1732763464044,-829.18,9.999e-05,2]
[343633061,1732763464053,-500.0,9.999e-05,2]
[343633062,1732763464063,-829.18,9.999e-05,2]
[343633063,1732763464072,-500.0,9.999e-05,2]
[343633064,1732763464082,-829.18,9.999e-05,2]
[343633065,1732763464092,-500.0,9.999e-05,2]
[343633066,1732763464102,-500.0,9.999e-05,2]
[343633067,1732763464112,-829.18,9.999e-05,2]
[343633068,1732763464122,-359.58,9.999e-05,2]
[343633069,1732763464132,-829.18,9.999e-05,2]
[343633070,1732763464142,-829.18,9.999e-05,2]
[343633071,1732763464151,-829.18,9.999e-05,2]
[343633072,1732763464161,-829.18,9.999e-05,2]
[343633073,1732763464171,-500.0,9.999e-05,2]
[343633074,1732763464182,-829.18,9.999e-05,2]
[343633075,1732763464193,-500.0,9.999e-05,2]
[343633076,1732763464202,-829.18,9.999e-05,2]
[343633077,1732763464212,-500.0,9.999e-05,2]
[343633078,1732763464223,-500.0,9.999e-05,2]
[343633079,1732763464232,-829.18,9.999e-05,2]
[343633080,1732763464241,-500.0,9.999e-05,2]
[343633081,1732763464251,-829.18,9.999e-05,2]
[343633082,1732763464262,-500.0,9.999e-05,2]
[343633083,1732763464274,-500.0,9.999e-05,2]
[343633084,1732763464283,-829.18,9.999e-05,2]
[343633085,1732763464292,-500.0,9.999e-05,2]
[343633086,1732763464302,-500.0,9.999e-05,2]
[343633087,1732763464311,-829.18,9.999e-05,2]
[343633088,1732763464321,-500.0,9.999e-05,2]
[343633089,1732763464331,-500.0,9.999e-05,2]
[343633090,1732763464341,-829.18,9.999e-05,2]
[343633091,1732763464351,-500.0,9.999e-05,2]
[343633092,1732763464360,-500.0,9.999e-05,2]
[343633093,1732763464370,-829.18,9.999e-05,2]
[343633094,1732763464379,-500.0,9.999e-05,2]
[343633095,1732763464389,-500.0,9.999e-05,2]
[343633096,1732763464398,-500.0,9.999e-05,2]
[343633097,1732763464407,-829.31258464,9.999e-05,2]
[343633098,1732763464417,-500.0,9.999e-05,2]
[343633099,1732763464426,-500.0,9.999e-05,2]
[343633100,1732763464435,-500.0,9.999e-05,2]
[343633101,1732763464444,-500.0,9.999e-05,2]
[343633102,1732763464454,-500.0,9.999e-05,2]
[343633103,1732763464464,-391.84,9.999e-05,2]
[343633104,1732763464473,-227.52,9.999e-05,2]
[343633105,1732763464483,-500.0,9.999e-05,2]
[343633106,1732763464494,-500.0,9.999e-05,2]
[343633107,1732763464504,-500.0,9.999e-05,2]
[343633108,1732763464514,-500.0,9.999e-05,2]
[343633109,1732763464524,-500.0,9.999e-05,2]
[343633110,1732763464535,-500.0,9.999e-05,2]
[343633111,1732763464544,-506.78198211,9.999e-05,2]
[343633112,1732763464554,-500.0,9.999e-05,2]
[343633113,1732763464564,-500.0,9.999e-05,2]
[343633114,1732763464574,-500.0,9.999e-05,2]
[343633115,1732763464584,-500.0,9.999e-05,2]
[343633116,1732763464594,-500.0,9.999e-05,2]
[343633117,1732763464604,-500.0,9.999e-05,2]
[343633118,1732763464615,-500.0,9.999e-05,2]
[343633119,1732763464625,-500.0,9.999e-05,2]
[343633120,1732763464635,-500.0,9.999e-05,2]
[343633121,1732763464645,-500.0,9.999e-05,2]
[343633122,1732763464654,-217.30878175,9.999e-05,2]
[343633123,1732763464665,-500.0,9.999e-05,2]
[343633124,1732763464675,-500.0,9.999e-05,2]
[343633125,1732763464684,-500.0,9.999e-05,2]
[343633126,1732763464694,-500.0,9.999e-05,2]
[343633127,1732763464704,-500.0,9.999e-05,2]
[343633128,1732763464714,-500.0,9.999e-05,2]
[343633129,1732763464724,-500.0,9.999e-05,2]
[343633130,1732763464733,-500.0,9.999e-05,2]
[343633131,1732763464743,-500.0,9.999e-05,2]
[343633132,1732763464753,-500.0,9.999e-05,2]
[343633133,1732763464763,-500.0,9.999e-05,2]
[343633134,1732763464773,-500.0,9.999e-05,2]
[343633135,1732763464783,-500.0,9.999e-05,2]
[343633136,1732763464793,-500.0,9.999e-05,2]
[343633137,1732763464803,-500.0,9.999e-05,2]
[343633138,1732763464812,-500.0,9.999e-05,2]
[343633139,1732763464822,-500.0,9.999e-05,2]
[343633140,1732763464832,-500.0,9.999e-05,2]
[343633141,1732763464841,-500.0,9.999e-05,2]
[343633142,1732763464851,-500.0,9.999e-05,2]
[343633143,1732763464861,-500.0,9.999e-05,2]
[343633144,1732763464870,-347.37,9.999e-05,2]
[343633145,1732763464880,-409.88440663,9.999e-05,2]
[343633146,1732763464890,-500.0,9.999e-05,2]
[343633147,1732763464899,-500.0,9.999e-05,2]
[343633148,1732763464909,-500.0,9.999e-05,2]
[343633149,1732763464919,-500.0,9.999e-05,2]
[343633150,1732763464929,-500.0,9.999e-05,2]
[343633151,1732763464939,-500.0,9.999e-05,2]
[343633152,1732763464948,-500.0,9.999e-05,2]
[343633153,1732763464958,-500.0,9.999e-05,2]
[343633154,1732763464967,-500.0,9.999e-05,2]
[343633155,1732763464976,-500.0,9.999e-05,2]
[343633156,1732763464987,-500.0,9.999e-05,2]
[343633157,1732763464996,-500.0,9.999e-05,2]
[343633158,1732763465006,-500.0,9.999e-05,2]
[343633159,1732763465016,-500.0,9.999e-05,2]
[343633160,1732763465026,-456.8579992,9.999e-05,2]
[343633161,1732763465036,-524.1,9.999e-05,2]
[343633162,1732763465046,-1314.95,9.999e-05,2]
[343633163,1732763465055,-1314.95,9.999e-05,2]
[343633164,1732763465065,-1124.78,9.999e-05,2]
[343633165,1732763465075,-1314.95,9.999e-05,2]
[343633166,1732763465086,-1124.78,9.999e-05,2]
[343633167,1732763465095,-1314.95,9.999e-05,2]
[343633168,1732763465104,-1314.95,9.999e-05,2]
[343633169,1732763465114,-1124.78,9.999e-05,2]
[343633170,1732763465123,-1314.95,9.999e-05,2]
[343633171,1732763465132,-1124.78,9.999e-05,2]
[343633172,1732763465142,-1314.95,9.999e-05,2]
[343633173,1732763465152,-1124.78,9.999e-05,2]
[343633174,1732763465161,-1314.95,9.999e-05,2]
[343633175,1732763465170,-1124.78,9.999e-05,2]
[343633176,1732763465180,-1314.95,9.999e-05,2]
[343633177,1732763465193,-1124.78,9.999e-05,2]
[343633178,1732763465203,-1314.95,9.999e-05,2]
[343633179,1732763465214,-1124.78,9.999e-05,2]
[343633180,1732763465224,-1314.95,9.999e-05,2]
[343633181,1732763465235,-1124.78,9.999e-05,2]
[343633182,1732763465246,-1314.95,9.999e-05,2]
[343633183,1732763465256,-1124.78,9.999e-05,2]
[343633184,1732763465266,-1314.95,9.999e-05,2]
[343633185,1732763465276,-1124.78,9.999e-05,2]
[343633186,1732763465285,-1314.95,9.999e-05,2]
[343633187,1732763465295,-1124.78,9.999e-05,2]
[343633188,1732763465304,-1314.95,9.999e-05,2]
[343633189,1732763465314,-1124.78,9.999e-05,2]
[343633190,1732763465324,-1314.95,9.999e-05,2]
[343633191,1732763465334,-1124.78,9.999e-05,2]
[343633192,1732763465344,-500.0,9.999e-05,2]
[343633193,1732763465355,-1314.95,9.999e-05,2]
[343633194,1732763465365,-1124.78,9.999e-05,2]
[343633195,1732763465375,-500.0,9.999e-05,2]
[343633196,1732763465386,-1314.95,9.999e-05,2]
[343633197,1732763465396,-1124.78,9.999e-05,2]
[343633198,1732763465406,-500.0,9.999e-05,2]
[343633199,1732763465416,-1124.78,9.999e-05,2]
[343633200,1732763465426,-1314.95,9.999e-05,2]
[343633201,1732763465436,-1124.78,9.999e-05,2]
[343633202,1732763465447,-1314.95,9.999e-05,2]
[343633203,1732763465457,-1124.78,9.999e-05,2]
[343633204,1732763465467,-1314.95,9.999e-05,2]
[343633205,1732763465477,-1124.78,9.999e-05,2]
[343633206,1732763465488,-500.0,9.999e-05,2]
[343633207,1732763465497,-1315.01151983,9.999e-05,2]
[343633208,1732763465508,-1124.9,9.999e-05,2]
[343633209,1732763465518,-500.0,9.999e-05,2]
[343633210,1732763465528,-500.0,9.999e-05,2]
[343633211,1732763465538,-500.0,9.999e-05,2]
[343633212,1732763465547,-500.0,9.999e-05,2]
[343633213,1732763465557,-500.0,9.999e-05,2]
[343633214,1732763465568,-500.0,9.999e-05,2]
[343633215,1732763465578,-518.56926228,9.999e-05,2]
[343633216,1732763465588,-500.0,9.999e-05,2]
[343633217,1732763465598,-500.0,9.999e-05,2]
[343633218,1732763465608,-404.31,9.999e-05,2]
[343633219,1732763465619,-500.0,9.999e-05,2]
[343633220,1732763465629,-500.0,9.999e-05,2]
[343633221,1732763465639,-500.0,9.999e-05,2]
[343633222,1732763465648,-500.0,9.999e-05,2]
[343633223,1732763465658,-500.0,9.999e-05,2]
[343633224,1732763465668,-500.0,9.999e-05,2]
[343633225,1732763465677,-500.0,9.999e-05,2]
[343633226,1732763465687,-500.0,9.999e-05,2]
[343633227,1732763465697,-500.0,9.999e-05,2]
[343633228,1732763465707,-500.0,9.999e-05,2]
[343633229,1732763465717,-500.0,9.999e-05,2]
[343633230,1732763465727,-500.0,9.999e-05,2]
[343633231,1732763465737,-500.0,9.999e-05,2]
[343633232,1732763465747,-500.0,9.999e-05,2]
[343633233,1732763465757,-500.0,9.999e-05,2]
[343633234,1732763465766,-500.0,9.999e-05,2]
[343633235,1732763465776,-500.0,9.999e-05,2]
[343633236,1732763465786,-500.0,9.999e-05,2]
[343633237,1732763465796,-509.96752013,9.999e-05,2]
[343633238,1732763465807,-500.0,9.999e-05,2]
[343633239,1732763465816,-221.01,9.999e-05,2]
[343633240,1732763465826,-500.0,9.999e-05,2]
[343633241,1732763465836,-500.0,9.999e-05,2]
[343633242,1732763465846,-500.0,9.999e-05,2]
[343633243,1732763465856,-544.1594516,9.999e-05,2]
[343633244,1732763465866,-257518.42435894,0.0001,2]
[343633245,1732763465876,-2264.08446098,0.0001,2]
[343633246,1732763465886,-604.70826862,0.0001,2]
[343633247,1732763465895,-604.70826855,0.0001,2]
[343633248,1732763465905,-604.70826855,0.0001,2]
[343633249,1732763465915,-604.70826855,0.0001,2]
[343633250,1732763465924,-604.70826855,0.0001,2]
[343633251,1732763465934,-604.70826855,0.0001,2]
[343633252,1732763465944,-604.70826855,0.0001,2]
[343633253,1732763465954,-604.70826855,0.0001,2]
[343633254,1732763465963,-604.70826855,0.0001,2]
[343633255,1732763465973,-6404565.27021358,0.0001,2]
[343633256,1732763466379,-681.01215659,0.0001,2]
[343633257,1732763466392,-723.3,0.0001,2]
[343633258,1732763466409,-4568.19457137,0.0001,2]
[343633259,1732763466420,-818.09083015,0.0001,2]
[343633260,1732763466432,-393.66794844,0.0001,2]
[343633261,1732763466463,-500.0,9.999e-05,2]
[343633262,1732763466473,-1144.99242995,0.0001,2]
[343633263,1732763466486,-1090.74995,0.0001,2]
[343633264,1732763466502,-1115.24470386,0.0001,2]
[343633265,1732763466514,-4094.65250882,0.0001,2]
[343633266,1732763466873,-500.0,9.999e-05,2]
[343633267,1732763466884,-500.0,9.999e-05,2]
[343633268,1732763466895,-211.6925432,9.999e-05,2]
[343633269,1732763466907,-253.94130098,9.999e-05,2]
[343633270,1732763466966,-502.82285808,9.899e-05,2]
[343633271,1732763466977,-34.36615582,9.999e-05,2]
[343633272,1732763466987,-13.12486522,9.999e-05,2]
[343633273,1732763467366,-500.0,9.898e-05,2]
[343633274,1732763467375,-500.0,9.899e-05,2]
[343633275,1732763467385,-500.0,9.899e-05,2]
[343633276,1732763467395,-500.0,9.996e-05,2]
[343633277,1732763467405,-500.0,9.998e-05,2]
[343633278,1732763467414,-500.0,9.998e-05,2]
[343633279,1732763467424,-500.0,9.998e-05,2]
[343633280,1732763467433,-184.89150342,9.998e-05,2]
[343633281,1732763467443,-486.87513478,9.999e-05,2]
[343633282,1732763467452,-500.0,9.999e-05,2]
[343633283,1732763467461,-293.42324399,9.999e-05,2]
[343633284,1732763467471,-500.0,9.999e-05,2]
[343633285,1732763467481,-500.0,9.999e-05,2]
[343633286,1732763467490,-500.0,9.999e-05,2]
[343633287,1732763467499,-500.0,9.999e-05,2]
[343633288,1732763467509,-4870471.22362148,0.0001,2]
[343633289,1732763467554,-500.0,9.899e-05,2]
[343633290,1732763467563,-500.0,9.999e-05,2]
[343633291,1732763467572,-7024.16086642,0.0001,2]
[343633292,1732763467584,-10920.70521133,0.0001,2]
[343633293,1732763467721,-602.0,9.898e-05,2]
[343633294,1732763467731,-602.0,9.997e-05,2]
[343633295,1732763467740,-500.0,9.998e-05,2]
[343633296,1732763467750,-505.06534916,9.998e-05,2]
[343633297,1732763467759,-500.0,9.999e-05,2]
[343633298,1732763467769,-280.12,9.999e-05,2]
[343633299,1732763467778,-500.0,9.999e-05,2]
[343633300,1732763467787,-500.0,9.999e-05,2]
[343633301,1732763467797,-91828.67729339,0.0001,2]
[343633302,1732763467808,-907.00284066,0.0001,2]
[343633303,1732763467820,-21086.415875,0.0001,2]
[343633304,1732763467924,-1166.90750069,0.0001,2]
[343633305,1732763467957,-602.0,9.998e-05,2]
[343633306,1732763467967,-500.0,9.999e-05,2]
[343633307,1732763467976,-956.70138425,0.0001,2]
[343633308,1732763730687,10000.0,9e-05,10]
[343633311,1732763866109,1000.0,0.00027,60]
[343633312,1732764068987,1000.0,0.00027,60]
[343633313,1732764070594,1000.0,0.00027,60]
[343633314,1732764078579,559.970468,0.00027,60]
[343633317,1732764483305,1000.0,0.00027,60]
[343633321,1732764507881,10000.0,0.00027,60]
[343633328,1732764530219,10000.0,0.00027,60]
[343633329,1732764572000,10000.0,0.00027,60]
[343633346,1732764632579,-1748.46,8.219e-05,2]
[343633347,1732764632589,-2755.0,8.495e-05,2]
[343633348,1732764632599,-250.0,8.797e-05,2]
[343633349,1732764632609,-161.57,8.797e-05,2]
[343633350,1732764632618,-250.62,8.802e-05,2]
[343633351,1732764632628,-8433.02,8.807e-05,2]
[343633352,1732764632639,-250.0,8.823e-05,2]
[343633353,1732764632648,-168.04,8.876e-05,2]
[343633354,1732764632657,-161.79,8.886e-05,2]
[343633355,1732764632666,-1000.0,8.89e-05,2]
[343633356,1732764632676,-222.63,9.326e-05,2]
[343633357,1732764632686,-300.69,9.326e-05,2]
[343633358,1732764632695,-868.92,9.326e-05,2]
[343633359,1732764632704,-300.0,9.326e-05,2]
[343633360,1732764632714,-726.96,9.326e-05,2]
[343633361,1732764632724,-500.0,9.534e-05,2]
[343633362,1732764632733,-400.0,9.589e-05,2]
[343633363,1732764632743,-500.0,9.699e-05,2]
[343633364,1732764632752,-150.0,9.728e-05,2]
[343633365,1732764632762,-150.0,9.729e-05,2]
[343633366,1732764632771,-150.0,9.731e-05,2]
[343633367,1732764632783,-150.0,9.731e-05,2]
[343633368,1732764632792,-150.0,9.737e-05,2]
[343633369,1732764632802,-150.0,9.741e-05,2]
[343633370,1732764632811,-150.0,9.742e-05,2]
[343633371,1732764632820,-150.0,9.742e-05,2]
[343633372,1732764632831,-150.0,9.743e-05,2]
[343633373,1732764632840,-150.0,9.743e-05,2]
[343633374,1732764632850,-150.0,9.744e-05,2]
[343633375,1732764632860,-150.0,9.745e-05,2]
[343633376,1732764632870,-150.0,9.745e-05,2]
[343633377,1732764632879,-150.0,9.747e-05,2]
[343633378,1732764632889,-150.0,9.751e-05,2]
[343633379,1732764632898,-150.0,9.752e-05,2]
[343633380,1732764632908,-150.0,9.752e-05,2]
[343633381,1732764632917,-150.0,9.753e-05,2]
[343633382,1732764632927,-150.0,9.76e-05,2]
[343633383,1732764632937,-150.0,9.761e-05,2]
[343633384,1732764632946,-150.0,9.765e-05,2]
[343633385,1732764632956,-150.0,9.771e-05,2]
[343633386,1732764632965,-150.0,9.772e-05,2]
[343633387,1732764632975,-150.0,9.773e-05,2]
[343633388,1732764632986,-150.0,9.782e-05,2]
[343633389,1732764632996,-150.0,9.783e-05,2]
[343633390,1732764633005,-150.0,9.785e-05,2]
[343633391,1732764633015,-5189.9973,9.799e-05,2]
[343633392,1732764633025,-26255.3789,9.799e-05,2]
[343633393,1732764633036,-150.0,9.801e-05,2]
[343633394,1732764633047,-150.0,9.801e-05,2]
[343633395,1732764633058,-150.0,9.801e-05,2]
[343633396,1732764633069,-150.0,9.802e-05,2]
[343633397,1732764633079,-150.0,9.805e-05,2]
[343633398,1732764633090,-150.0,9.808e-05,2]
[343633399,1732764633100,-150.0,9.815e-05,2]
[343633400,1732764633110,-150.0,9.816e-05,2]
[343633401,1732764633120,-150.0,9.817e-05,2]
[343633402,1732764633130,-150.0,9.829e-05,2]
[343633403,1732764633139,-150.0,9.838e-05,2]
[343633404,1732764633148,-150.0,9.838e-05,2]
[343633405,1732764633157,-150.0,9.84e-05,2]
[343633406,1732764633166,-150.0,9.842e-05,2]
[343633407,1732764633175,-150.0,9.843e-05,2]
[343633408,1732764633185,-150.0,9.845e-05,2]
[343633409,1732764633195,-150.0,9.847e-05,2]
[343633410,1732764633204,-150.0,9.854e-05,2]
[343633411,1732764633214,-150.0,9.855e-05,2]
[343633412,1732764633223,-150.0,9.856e-05,2]
[343633413,1732764633232,-150.0,9.857e-05,2]
[343633414,1732764633242,-150.0,9.862e-05,2]
[343633415,1732764633252,-179.26516746,9.863e-05,2]
[343633416,1732764633262,-600.0,9.863e-05,2]
[343633417,1732764633272,-600.0,9.863e-05,2]
[343633418,1732764633284,-600.0,9.863e-05,2]
[343633419,1732764633293,-600.0,9.863e-05,2]
[343633420,1732764633303,-600.0,9.863e-05,2]
[343633421,1732764633312,-600.0,9.863e-05,2]
[343633422,1732764633322,-150.0,9.869e-05,2]
[343633423,1732764633331,-150.0,9.876e-05,2]
[343633424,1732764633341,-150.0,9.881e-05,2]
[343633425,1732764633351,-150.0,9.89e-05,2]
[343633426,1732764633360,-150.0,9.891e-05,2]
[343633427,1732764633369,-500.0,9.897e-05,2]
[343633428,1732764633379,-500.0,9.897e-05,2]
[343633429,1732764633389,-500.0,9.897e-05,2]
[343633430,1732764633399,-500.0,9.897e-05,2]
[343633431,1732764633408,-545.02957291,9.897e-05,2]
[343633432,1732764633417,-500.0,9.897e-05,2]
[343633433,1732764633428,-1110.86,9.897e-05,2]
[343633434,1732764633438,-500.0,9.897e-05,2]
[343633435,1732764633448,-500.0,9.897e-05,2]
[343633436,1732764633458,-500.0,9.897e-05,2]
[343633437,1732764633468,-500.0,9.897e-05,2]
[343633438,1732764633479,-500.0,9.897e-05,2]
[343633439,1732764633489,-500.0,9.897e-05,2]
[343633440,1732764633499,-500.0,9.897e-05,2]
[343633441,1732764633508,-500.0,9.897e-05,2]
[343633442,1732764633519,-1043.63,9.897e-05,2]
[343633443,1732764633531,-500.0,9.897e-05,2]
[343633444,1732764633540,-500.0,9.897e-05,2]
[343633445,1732764633551,-500.0,9.897e-05,2]
[343633446,1732764633562,-500.0,9.897e-05,2]
[343633447,1732764633573,-500.0,9.897e-05,2]
[343633448,1732764633583,-500.0,9.897e-05,2]
[343633449,1732764633592,-1724.35,9.897e-05,2]
[343633450,1732764633602,-4783.39,9.897e-05,2]
[343633451,1732764633613,-500.0,9.897e-05,2]
[343633452,1732764633623,-500.0,9.897e-05,2]
[343633453,1732764633634,-500.0,9.897e-05,2]
[343633454,1732764633644,-500.0,9.897e-05,2]
[343633455,1732764633653,-500.0,9.897e-05,2]
[343633456,1732764633663,-561.11,9.897e-05,2]
[343633457,1732764633673,-500.0,9.897e-05,2]
[343633458,1732764633682,-516.2304586,9.897e-05,2]
[343633459,1732764633692,-500.0,9.897e-05,2]
[343633460,1732764633701,-500.0,9.897e-05,2]
[343633461,1732764633711,-500.0,9.897e-05,2]
[343633462,1732764633721,-500.0,9.897e-05,2]
[343633463,1732764633731,-500.0,9.897e-05,2]
[343633464,1732764633741,-500.0,9.897e-05,2]
[343633465,1732764633751,-589.68,9.897e-05,2]
[343633466,1732764633761,-1304.79,9.897e-05,2]
[343633467,1732764633771,-768.96,9.897e-05,2]
[343633468,1732764633783,-500.0,9.897e-05,2]
[343633469,1732764633793,-500.0,9.897e-05,2]
[343633470,1732764633803,-1308.46,9.897e-05,2]
[343633471,1732764633813,-500.0,9.897e-05,2]
[343633472,1732764633823,-1311.75,9.897e-05,2]
[343633473,1732764633833,-901.56,9.897e-05,2]
[343633474,1732764633842,-1185.53,9.897e-05,2]
[343633475,1732764633852,-500.0,9.897e-05,2]
[343633476,1732764633862,-500.0,9.897e-05,2]
[343633477,1732764633872,-422.68,9.897e-05,2]
[343633478,1732764633882,-500.0,9.897e-05,2]
[343633479,1732764633892,-500.0,9.897e-05,2]
[343633480,1732764633901,-563.14,9.897e-05,2]
[343633481,1732764633911,-500.0,9.897e-05,2]
[343633482,1732764633921,-500.0,9.897e-05,2]
[343633483,1732764633930,-500.0,9.897e-05,2]
[343633484,1732764633940,-500.0,9.897e-05,2]
[343633485,1732764633949,-500.0,9.897e-05,2]
[343633486,1732764633959,-500.0,9.897e-05,2]
[343633487,1732764633970,-500.0,9.897e-05,2]
[343633488,1732764633979,-500.0,9.897e-05,2]